bitfinex-derivatives/quotes_ETHF0:USTF0_20250321
["timestamp","ask_amount","ask_price","bid_price","bid_amount"]
[1742574779402,4.45101,1961.7,1961.6,2.30594]
[1742574779792,4.45104,1961.7,1961.6,1.02006]
[1742574780197,4.45104,1961.7,1961.6,1.2859]
[1742574780698,3.431,1961.7,1961.6,2.30596]
[1742574781301,5.86111,1961.7,1961.6,2.30596]
[1742574782303,5.86111,1961.7,1961.6,1.2859]
[1742574782800,5.86111,1961.7,1961.5,0.00765834]
[1742574782801,1.02006,1961.6,1961.5,0.00765834]
[1742574783106,3.75256,1961.6,1961.5,0.00765834]
[1742574783498,2.0364,1961.6,1961.5,5.66246834]
[1742574783698,5.4674,1961.6,1961.5,5.66246834]
[1742574784304,5.4674,1961.6,1961.5,2.45466834]
[1742574784499,6.48746,1961.6,1961.5,2.45466834]
[1742574784998,6.48746,1961.6,1961.5,1.43455834]
[1742574786201,6.48746,1961.6,1961.5,0.00765834]
[1742574786601,6.48746,1961.6,1961.5,1.30435834]
[1742574787801,5.4674,1961.6,1961.5,5.53226834]
[1742574788106,6.48746,1961.6,1961.5,2.32446834]
[1742574789307,5.4674,1961.6,1961.5,2.32446834]
[1742574789703,3.431,1961.6,1961.5,2.32446834]
[1742574790011,4.45106,1961.6,1961.5,2.32446834]
[1742574790207,3.431,1961.6,1961.5,2.32446834]
[1742574790394,4.45106,1961.6,1961.5,2.32446834]
[1742574791209,4.45106,1961.6,1961.5,0.00765834]
[1742574792314,1.02027,1961.2,1961.1,1.45029001]
[1742574792509,4.45226,1961.3,1961.2,1.02027]
[1742574792711,5.14596,1961.3,1961.2,1.02027]
[1742574793913,1.02027,1961.2,1961.1,2.43683834]
[1742574794104,2.41547,1961.2,1961.1,0.00765834]
[1742574797602,2.41547,1961.2,1961.1,4.23577834]
[1742574797603,4.8272,1961.2,1961.1,4.23577834]
[1742574797917,0.6937,1961.3,1961.1,4.23577834]
[1742574797918,3.432,1961.3,1961.2,1.02027]
[1742574798212,4.7446,1961.4,1961.3,1.02022]
[1742574798453,3.432,1961.4,1961.3,4.22802]
[1742574798623,4.45216,1961.4,1961.3,4.90482]
[1742574799102,1.69285,1961.5,1961.4,1.02016]
[1742574799300,5.4173,1961.5,1961.4,2.35696]
[1742574799532,6.43741,1961.5,1961.4,2.0168]
[1742574800014,6.43741,1961.5,1961.4,3.03696]
[1742574800513,6.43741,1961.5,1961.4,6.24476]
[1742574800715,6.43741,1961.5,1961.4,3.03696]
[1742574801416,6.43741,1961.5,1961.4,2.0168]
[1742574802013,1.02027,1961.2,1961.1,0.00765834]
[1742574802212,1.02027,1961.2,1961.1,1.02795834]
[1742574802719,1.02027,1961.2,1961.1,2.45335834]
[1742574802912,2.35707,1961.2,1961.1,0.00765834]
[1742574805220,2.35707,1961.2,1961.1,1.43305834]
[1742574805525,2.35707,1961.2,1961.1,0.00765834]
[1742574811219,2.55104,1961.0,1960.6,3.2078]
[1742574811426,1.02048,1960.8,1960.7,2.44222]
[1742574811838,2.40128,1960.8,1960.7,2.44222]
[1742574812118,2.40128,1960.8,1960.7,1.4217]
[1742574812325,2.40128,1960.8,1960.7,2.44223]
[1742574812527,2.40128,1960.8,1960.7,1.4217]
[1742574812828,2.40128,1960.8,1960.7,2.44223]
[1742574813028,2.40128,1960.8,1960.7,1.4217]
[1742574813626,1.02048,1960.8,1960.7,2.44223]
[1742574814019,2.40128,1960.8,1960.7,1.4217]
[1742574814424,3.04698,1960.8,1960.7,1.4217]
[1742574815320,6.25478,1960.8,1960.7,1.4217]
[1742574816625,6.25478,1960.8,1960.6,0.00765834]
[1742574816626,1.02053,1960.7,1960.6,0.00765834]
[1742574816856,5.77653,1960.7,1960.6,1.35645834]
[1742574817329,5.77653,1960.7,1960.6,2.37703834]
[1742574817521,5.77653,1960.7,1960.6,1.35645834]
[1742574818020,9.85875,1960.7,1960.2,1.02076]
[1742574818225,1.02074,1960.3,1960.2,1.67046]
[1742574818420,4.45374,1960.3,1960.2,1.67046]
[1742574819124,3.433,1960.3,1960.2,4.87826]
[1742574821330,3.433,1960.4,1960.3,1.02074]
[1742574821924,4.45368,1960.4,1960.3,1.02074]
[1742574822326,1.02068,1960.4,1960.3,1.02074]
[1742574822530,2.35986,1960.5,1960.4,1.02068]
[1742574822832,5.79286,1960.5,1960.4,1.02068]
[1742574823631,0.686,1960.7,1960.6,1.02058]
[1742574823832,5.13953,1960.7,1960.6,1.02058]
[1742574824028,6.44503,1960.7,1960.6,1.02058]
[1742574824834,1.02810834,1960.9,1960.8,1.02048]
[1742574825034,4.46110834,1960.9,1960.8,1.02048]
[1742574825537,5.76660834,1960.9,1960.8,1.02048]
[1742574825934,1.02056,1960.7,1960.6,1.02051]
[1742574826235,4.45356,1960.7,1960.6,1.02051]
[1742574826435,3.433,1960.7,1960.6,1.02051]
[1742574827028,0.00765834,1960.9,1960.8,1.02048]
[1742574827435,4.46107834,1960.9,1960.8,1.02048]
[1742574827640,3.44065834,1960.9,1960.8,1.67898]
[1742574827840,4.46107834,1960.9,1960.8,1.67898]
[1742574828536,3.44065834,1960.9,1960.8,1.67898]
[1742574828939,0.00765834,1960.9,1960.8,1.67898]
[1742574830545,1.02807834,1960.9,1960.8,2.98538]
[1742574830738,0.00765834,1960.9,1960.8,2.98538]
[1742574831137,1.02807834,1960.9,1960.8,2.98538]
[1742574831338,0.00765834,1960.9,1960.8,6.19318]
[1742574831540,1.02807834,1960.9,1960.8,2.98538]
[1742574831866,0.00765834,1960.9,1960.8,2.98538]
[1742574832539,5.75837,1961.3,1961.2,1.02027]
[1742574832540,1.02024,1961.3,1961.2,1.02027]
[1742574832736,1.02032,1961.2,1961.1,1.02028]
[1742574833336,1.02032,1961.2,1961.1,1.67368]
[1742574833833,1.02032,1961.2,1961.1,2.98448]
[1742574834043,2.36012,1961.2,1961.1,2.98448]
[1742574835745,4.45232,1961.2,1961.1,2.98448]
[1742574836041,4.7718,1961.2,1961.1,2.98448]
[1742574836339,3.432,1961.2,1961.1,2.98448]
[1742574836537,0.00765834,1961.3,1961.2,1.02027]
[1742574836741,3.43965834,1961.3,1961.2,2.44637]
[1742574836943,4.45987834,1961.3,1961.2,2.44637]
[1742574837441,5.78267834,1961.3,1961.2,2.44637]
[1742574837646,4.76245834,1961.3,1961.2,2.44637]
[1742574838032,5.78267834,1961.3,1961.2,2.44637]
[1742574838443,4.76245834,1961.3,1961.2,2.44637]
[1742574839033,5.78267834,1961.3,1961.2,2.44637]
[1742574839651,4.76245834,1961.3,1961.2,2.44637]
[1742574840547,5.78267834,1961.3,1961.2,2.44637]
[1742574841048,4.76245834,1961.3,1961.2,2.44637]
[1742574841237,5.78267834,1961.3,1961.2,2.44637]
[1742574841639,5.78267834,1961.3,1961.2,1.4261]
[1742574842240,5.78267834,1961.3,1961.2,2.44637]
[1742574843049,4.76245834,1961.3,1961.2,2.44637]
[1742574843348,4.76245834,1961.3,1961.2,5.65417]
[1742574843349,0.00765834,1961.3,1961.2,5.65417]
[1742574847344,0.703,1961.8,1961.7,1.02001]
[1742574847547,4.1101,1962.0,1961.9,1.0199]
[1742574847750,6.0929,1962.0,1961.9,1.0199]
[1742574848149,7.11275,1962.0,1961.9,1.0199]
[1742574848544,7.11275,1962.0,1961.8,42.1104]
[1742574848545,1.0199,1961.9,1961.8,1.02757834]
[1742574848746,7.16055,1961.9,1961.4,1.3511]
[1742574849048,1.02011,1961.5,1961.4,2.37123]
[1742574849245,1.02011,1961.5,1961.3,1.02019]
[1742574849246,1.0202,1961.4,1961.3,1.02019]
[1742574849448,2.0475,1961.4,1961.3,1.02017]
[1742574850447,3.06766,1961.4,1961.3,1.02017]
[1742574851449,1.02022,1961.3,1961.2,2.37899834]
[1742574851745,4.8238,1961.3,1961.2,2.37902834]
[1742574851945,5.84402,1961.3,1961.2,2.37902834]
[1742574852942,5.84402,1961.3,1961.2,1.02792834]
[1742574853141,5.84402,1961.3,1960.8,1.02043]
[1742574853142,1.02042,1960.9,1960.8,1.02043]
[1742574853347,1.02051,1960.8,1960.7,1.02051]
[1742574853543,3.10251,1960.8,1960.7,1.424]
[1742574853748,3.81381,1960.8,1960.7,43.24453]
[1742574854255,3.81381,1960.8,1960.7,40.8]
[1742574854553,3.431,1960.9,1960.8,1.02048]
[1742574854554,0.00765834,1960.9,1960.8,1.02048]
[1742574854950,0.00765834,1960.9,1960.8,43.21378]
[1742574855147,0.00765834,1960.9,1960.8,46.42158]
[1742574857060,0.00765834,1960.9,1960.8,47.07459788]
[1742574857560,0.00765834,1960.9,1960.8,46.42158]
[1742574858057,0.00765834,1960.9,1960.8,5.62158]
[1742574858359,1.40655834,1960.9,1960.8,5.62158]
[1742574858562,1.40655834,1960.9,1960.8,2.41378]
[1742574858763,1.40655834,1960.9,1960.8,1.02048]
[1742574859062,2.42697834,1960.9,1960.8,2.31398]
[1742574859560,1.40655834,1960.9,1960.8,2.31398]
[1742574859758,2.42697834,1960.9,1960.8,2.31398]
[1742574860754,0.00765834,1960.9,1960.8,2.31398]
[1742574861657,1.42255834,1960.9,1960.8,2.31398]
[1742574862562,2.44297834,1960.9,1960.8,2.31398]
[1742574862753,1.42255834,1960.9,1960.8,2.31398]
[1742574862954,0.00765834,1960.9,1960.8,2.31398]
[1742574863355,0.00765834,1960.9,1960.8,6.21468]
[1742574865359,0.00765834,1960.9,1960.8,2.31398]
[1742574865565,1.02053,1960.7,1960.6,0.00765834]
[1742574865753,4.45253,1960.7,1960.6,0.00765834]
[1742574866064,3.432,1960.7,1960.6,1.02823834]
[1742574866282,4.8468,1960.7,1960.6,1.02823834]
[1742574866460,3.43965834,1960.9,1960.8,1.02048]
[1742574867350,4.74555834,1960.9,1960.8,1.02048]
[1742574867563,5.76597834,1960.9,1960.8,1.02048]
[1742574868056,1.02048,1960.8,1960.7,1.378]
[1742574868429,1.02053,1960.7,1960.6,1.02820834]
[1742574868560,1.69873,1960.7,1960.6,2.40623834]
[1742574868765,9.01343,1960.7,1960.6,2.40623834]
[1742574868963,5.80563,1960.7,1960.6,1.38565834]
[1742574869156,5.80563,1960.7,1960.6,0.00765834]
[1742574869356,9.01343,1960.7,1960.6,0.00765834]
[1742574869757,5.80563,1960.7,1960.6,0.00765834]
[1742574869958,9.01343,1960.7,1960.6,0.00765834]
[1742574872707,9.01343,1960.7,1960.6,1.02823834]
[1742574872855,5.80563,1960.7,1960.6,1.02823834]
[1742574873055,1.3531,1960.7,1960.6,1.02823834]
[1742574873267,4.7851,1960.7,1960.6,1.02823834]
[1742574873469,2.32642,1960.8,1960.7,1.02053]
[1742574873768,5.75842,1960.8,1960.7,2.35833]
[1742574875057,5.75842,1960.8,1960.7,1.02053]
[1742574875674,8.96622,1960.8,1960.7,1.02053]
[1742574876572,8.96622,1960.8,1960.6,1.34545834]
[1742574876768,8.96622,1960.8,1960.6,0.00765834]
[1742574876769,2.39023,1960.7,1960.6,0.00765834]
[1742574877564,2.39023,1960.7,1960.6,1.02823834]
[1742574877878,5.59803,1960.7,1960.6,1.02823834]
[1742574878066,2.39023,1960.7,1960.6,0.00765834]
[1742574879980,1.02074,1960.3,1960.2,1.3846]
[1742574880178,1.02079,1960.2,1960.1,41.8208]
[1742574880480,3.76269,1960.2,1960.1,43.2054]
[1742574881208,3.76269,1960.2,1960.1,2.4054]
[1742574884680,1.4083,1960.2,1960.1,2.4054]
[1742574885277,1.02071,1960.4,1960.3,1.02074]
[1742574885577,1.02074,1960.3,1960.2,2.34115]
[1742574885981,2.38034,1960.3,1960.2,2.34115]
[1742574886778,3.05534,1960.3,1960.2,2.34115]
[1742574888879,6.6398,1960.4,1960.3,1.02074]
[1742574889078,6.6398,1960.4,1960.3,2.40474]
[1742574890085,7.9272,1960.4,1960.3,2.40474]
[1742574890390,8.94788,1960.4,1960.3,2.40474]
[1742574890580,2.10788664,1960.7,1960.4,5.10332]
[1742574890822,3.432,1960.6,1960.5,3.67893]
[1742574891483,1.4167,1960.7,1960.6,1.02058]
[1742574891686,3.432,1960.8,1960.7,1.02053]
[1742574891883,2.44480834,1960.9,1960.8,1.02048]
[1742574892087,0.00765834,1960.9,1960.8,1.02048]
[1742574892780,0.00765834,1960.9,1960.8,4.22828]
[1742574892976,2.10788664,1961.2,1960.8,4.22828]
[1742574892977,5.09774,1961.3,1961.2,1.02027]
[1742574893186,5.4942,1961.3,1961.2,1.02027]
[1742574893380,6.51442,1961.3,1961.2,1.02027]
[1742574893683,1.02021,1961.4,1961.3,1.02022]
[1742574893888,1.02016,1961.4,1961.3,1.02022]
[1742574894090,3.432,1961.4,1961.3,1.02022]
[1742574894388,1.42525834,1961.5,1961.4,1.02016]
[1742574894589,4.85725834,1961.5,1961.4,1.02016]
[1742574894794,3.43965834,1961.5,1961.4,1.02016]
[1742574894984,0.00765834,1961.5,1961.4,1.02016]
[1742574895181,0.00765834,1961.5,1961.4,5.58436]
[1742574895586,3.432,1961.8,1961.7,1.02001]
[1742574896092,9.91106768,1962.0,1961.9,1.0199]
[1742574896777,10.93091768,1962.0,1961.9,1.0199]
[1742574896998,11.31766768,1962.0,1961.9,1.0199]
[1742574897211,11.31766768,1962.0,1961.9,2.4222]
[1742574898079,1.4066,1962.0,1961.9,5.63]
[1742574898284,1.4066,1962.0,1961.9,2.4222]
[1742574898693,0.00765834,1962.1,1962.0,1.01985]
[1742574898891,0.00765834,1962.1,1962.0,2.42215]
[1742574900795,3.43865834,1962.1,1961.8,0.6668]
[1742574900979,3.43865834,1962.1,1961.5,0.43000001]
[1742574900980,4.5743,1962.0,1961.5,0.43000001]
[1742574901287,1.01999,1961.8,1961.6,1.02004]
[1742574901488,5.81751,1961.7,1961.6,1.02004]
[1742574901679,4.7975,1961.7,1961.6,1.02006]
[1742574902281,0.00765834,1962.1,1962.0,1.01985]
[1742574902592,1.37415834,1962.1,1962.0,1.01985]
[1742574902790,2.39396834,1962.1,1961.7,7.74469]
[1742574903089,1.37415834,1962.1,1962.0,1.01985]
[1742574904087,0.00765834,1962.1,1962.0,1.01985]
[1742574904289,0.00765834,1962.1,1962.0,2.34575]
[1742574906783,1.36715834,1962.1,1962.0,2.34575]
[1742574911796,1.01995,1961.9,1961.8,1.01995]
[1742574912101,1.02001,1961.7,1961.6,0.43000001]
[1742574912296,1.02001,1961.7,1961.6,1.45003001]
[1742574912498,2.0923,1961.8,1961.7,1.02001]
[1742574912695,6.54126,1961.8,1961.7,2.38161]
[1742574913699,6.54126,1961.8,1961.7,1.3616]
[1742574913897,1.02007,1961.6,1961.5,1.02007]
[1742574914101,1.02007,1961.6,1961.5,2.38167]
[1742574914595,1.02005,1961.7,1961.6,1.02004]
[1742574914801,1.3807,1961.7,1961.6,1.02004]
[1742574916194,2.40071,1961.7,1961.6,1.02004]
[1742574916434,1.02015,1961.5,1961.3,41.4875]
[1742574916594,1.4206,1961.4,1961.3,43.84452]
[1742574917395,5.86976,1961.4,1961.3,40.8]
[1742574917596,9.07756,1961.4,1961.3,40.8]
[1742574917802,1.02022,1961.3,1961.2,0.00765834]
[1742574918106,3.09542,1961.3,1961.2,0.00765834]
[1742574918599,2.55074,1961.2,1960.8,1.02044]
[1742574918804,1.02042,1960.9,1960.8,1.3678]
[1742574919113,1.02048,1960.8,1960.7,4.91589]
[1742574919305,2.32698,1960.8,1960.7,3.2078]
[1742574919700,2.32698,1960.8,1960.7,44.0078]
[1742574919901,2.32698,1960.8,1960.7,45.02833]
[1742574920507,1.3065,1960.8,1960.7,45.02833]
[1742574920705,0.00765834,1960.9,1960.8,1.02048]
[1742574920906,0.00765834,1960.9,1960.8,3.05988]
[1742574921117,0.6546,1961.3,1960.8,3.05988]
[1742574921118,3.43,1961.5,1961.4,1.02016]
[1742574921412,4.45011,1961.5,1961.4,41.82016]
[1742574921614,3.43,1961.5,1961.4,41.82016]
[1742574922407,3.43,1961.5,1961.4,43.12416]
[1742574922841,4.7498,1961.5,1961.4,43.12416]
[1742574923313,0.00765834,1961.6,1961.5,1.02011]
[1742574923608,0.00765834,1961.6,1961.5,1.304]
[1742574923818,2.34751834,1961.6,1961.5,1.304]
[1742574924007,2.34751834,1961.6,1961.5,2.32411]
[1742574924609,2.34751834,1961.6,1961.5,1.304]
[1742574925312,5.55531834,1961.6,1961.5,1.304]
[1742574925513,1.02011,1961.5,1961.4,40.8]
[1742574925704,1.02022,1961.3,1961.2,2.7454]
[1742574926034,2.55073,1961.2,1960.7,4.22829]
[1742574926203,5.98081,1961.1,1960.7,4.5708]
[1742574926407,1.02042,1961.0,1960.8,1.02046]
[1742574926608,4.45042,1960.9,1960.8,2.38346]
[1742574927016,3.43,1960.9,1960.8,2.38346]
[1742574927316,4.45042,1960.9,1960.8,43.18346]
[1742574927510,4.7852,1960.9,1960.8,43.18346]
[1742574927711,3.43,1960.9,1960.8,46.39126]
[1742574928116,3.43,1960.9,1960.8,43.18346]
[1742574928316,5.80562,1960.9,1960.8,43.18346]
[1742574928616,4.7852,1960.9,1960.8,43.18346]
[1742574929002,3.43,1960.9,1960.8,43.18346]
[1742574929206,3.43,1960.9,1960.8,46.39126]
[1742574930719,1.3552,1961.1,1961.0,1.02037]
[1742574930916,3.43,1961.1,1961.0,4.22817]
[1742574931117,3.43,1961.1,1961.0,1.02037]
[1742574931317,4.7502,1961.3,1961.2,1.02027]
[1742574931712,1.02029,1961.2,1961.1,1.02029]
[1742574931919,2.34049,1961.2,1961.1,1.02029]
[1742574932309,1.3202,1961.2,1961.1,1.02029]
[1742574933011,2.34047,1961.2,1961.1,1.02029]
[1742574934318,2.34047,1961.2,1960.9,1.45041001]
[1742574934319,1.02037,1961.0,1960.9,1.45041001]
[1742574934522,1.02037,1961.0,1960.9,0.43000001]
[1742574934922,3.07567,1961.0,1960.9,0.43000001]
[1742574937115,3.07567,1961.0,1960.7,42.1923]
[1742574937116,4.6063,1961.0,1960.7,42.1923]
[1742574937420,4.45048,1960.9,1960.8,1.02044]
[1742574937719,5.84748,1960.9,1960.8,1.02044]
[1742574940527,0.6643,1961.1,1960.8,2.5512]
[1742574940816,2.43655,1961.1,1961.0,1.02037]
[1742574941012,5.86655,1961.1,1961.0,1.02037]
[1742574941209,1.4162,1961.1,1961.0,41.82037]
[1742574941424,2.35102,1961.3,1961.2,1.02027]
[1742574941724,7.19722,1961.3,1961.2,1.02027]
[1742574941913,5.86642,1961.3,1961.2,1.02027]
[1742574943821,1.02027,1961.2,1961.1,2.36388]
[1742574944021,2.38297,1961.2,1961.1,2.36388]
[1742574945619,1.3627,1961.2,1961.1,2.36388]
[1742574945819,4.5386,1961.5,1961.3,1.02018]
[1742574946021,1.02026,1961.3,1961.2,1.02023]
[1742574946526,2.37426,1961.3,1961.2,1.02023]
[1742574947030,1.354,1961.3,1961.2,1.02023]
[1742574947328,2.37422,1961.3,1961.2,1.02023]
[1742574947520,1.02035,1961.1,1961.0,1.02034]
[1742574948127,3.73725,1961.1,1961.0,1.02034]
[1742574949026,2.7169,1961.1,1961.0,1.02034]
[1742574949225,3.43,1961.2,1961.1,1.02032]
[1742574949419,0.86340918,1961.4,1961.1,1.72182]
[1742574949618,4.8047,1961.4,1961.3,1.02022]
[1742574949941,1.3747,1961.4,1961.3,1.02022]
[1742574950426,3.21545834,1961.6,1961.5,1.02011]
[1742574950625,9.04021834,1961.6,1961.5,1.02011]
[1742574950824,8.02015834,1961.6,1961.5,1.02011]
[1742574951214,5.83241834,1961.6,1961.5,1.02011]
[1742574951923,3.43765834,1961.6,1961.5,1.02011]
[1742574952321,0.00765834,1961.6,1961.5,1.02011]
[1742574952522,0.00765834,1961.6,1961.5,1.72241]
[1742574952736,3.2078,1962.1,1961.5,8.30288]
[1742574953026,5.80916,1962.0,1961.9,1.0199]
[1742574954331,1.0199,1961.9,1961.8,0.00765834]
[1742574954519,2.55005,1961.7,1961.1,3.2078]
[1742574954720,1.02024,1961.3,1961.2,1.02024]
[1742574955025,1.02036,1961.1,1961.0,1.02037]
[1742574955225,4.44936,1961.1,1961.0,1.02037]
[1742574955534,3.429,1961.1,1960.9,1.68339]
[1742574955720,2.32857,1961.0,1960.9,0.00765834]
[1742574956422,1.02057,1960.7,1960.3,2.55183]
[1742574956626,4.7372,1960.6,1960.5,1.02059]
[1742574957121,4.7372,1960.6,1960.4,1.02064]
[1742574957322,1.02063,1960.5,1960.4,1.02064]
[1742574957523,1.3082,1960.5,1960.4,1.02064]
[1742574957721,2.32883,1960.5,1960.3,1.69136834]
[1742574957925,2.32887,1960.5,1960.3,1.69136834]
[1742574958126,4.44968,1960.4,1960.3,0.00765834]
[1742574958426,5.79858,1960.4,1960.3,0.00765834]
[1742574959531,5.79858,1960.4,1960.3,1.02839834]
[1742574959734,5.79858,1960.4,1960.3,0.00765834]
[1742574961426,3.429,1960.4,1960.3,1.02839834]
[1742574961626,3.429,1960.4,1960.3,1.69459834]
[1742574961828,4.44968,1960.4,1960.3,0.67385834]
[1742574962333,4.44968,1960.4,1960.3,2.02815834]
[1742574962532,4.44968,1960.4,1960.3,3.04889834]
[1742574962533,3.429,1960.4,1960.3,3.04889834]
[1742574962929,3.43,1960.6,1960.5,1.02059]
[1742574963834,4.7346,1960.6,1960.5,1.02059]
[1742574964030,5.75518,1960.6,1960.5,1.02059]
[1742574964231,1.3046,1960.6,1960.5,1.02059]
[1742574964533,3.43,1960.6,1960.5,1.02059]
[1742574964833,1.31225834,1960.7,1960.6,1.02058]
[1742574965031,3.43765834,1960.7,1960.6,1.02058]
[1742574965240,0.00765834,1960.7,1960.6,4.22838]
[1742574965427,0.00765834,1960.7,1960.6,1.02058]
[1742574965627,0.00765834,1960.7,1960.6,41.82058]
[1742574965935,2.33278834,1960.7,1960.6,40.8]
[1742574966126,2.33278834,1960.7,1960.6,42.1585]
[1742574966326,2.33278834,1960.7,1960.6,1.3585]
[1742574966829,1.02068,1960.4,1960.3,0.00765834]
[1742574967034,4.45068,1960.4,1960.3,0.00765834]
[1742574968436,1.02068,1960.4,1960.3,0.00765834]
[1742574968622,3.43,1960.4,1960.3,1.02839834]
[1742574968826,4.45068,1960.4,1960.3,1.02839834]
[1742574969033,4.8493,1960.4,1960.3,2.34269834]
[1742574969621,5.86998,1960.4,1960.3,2.34269834]
[1742574970023,5.86998,1960.4,1960.3,1.32195834]
[1742574970434,5.86998,1960.4,1960.3,0.00765834]
[1742574971033,2.55193,1960.3,1959.6,5.76044]
[1742574971238,1.02087,1960.1,1959.9,1.3228]
[1742574971434,6.46562,1960.2,1960.1,1.02084]
[1742574971636,1.02087,1960.1,1960.0,1.02087]
[1742574971834,2.35227,1960.1,1960.0,1.02087]
[1742574972530,3.43,1960.2,1960.1,1.02084]
[1742574972842,5.78216,1960.3,1960.2,1.02079]
[1742574973136,1.0208,1960.2,1960.1,1.67551]
[1742574973339,2.3996,1960.2,1960.1,1.9785]
[1742574974032,2.3996,1960.2,1960.1,42.7785]
[1742574974434,2.3996,1960.2,1960.1,1.9785]
[1742574974835,2.3996,1960.2,1960.1,2.99934]
[1742574975044,1.02089,1960.0,1959.9,40.80765834]
[1742574975243,1.02089,1960.0,1959.9,42.13145834]
[1742574975739,2.39969,1960.0,1959.9,42.13145834]
[1742574976336,2.39969,1960.0,1959.9,1.33145834]
[1742574976940,1.3788,1960.0,1959.9,2.35240834]
[1742574977437,2.10788664,1960.2,1960.1,1.02084]
[1742574977842,1.02084,1960.1,1960.0,2.39866]
[1742574978046,2.32914,1960.1,1960.0,1.3778]
[1742574978247,1.02089,1960.0,1959.9,0.00765834]
[1742574978438,5.76019,1960.0,1959.9,0.00765834]
[1742574979643,5.76019,1960.0,1959.9,1.02860834]
[1742574979843,5.76019,1960.0,1959.9,1.30235834]
[1742574981353,5.76019,1960.0,1959.9,2.32330834]
[1742574981748,5.76019,1960.0,1959.9,1.30235834]
[1742574982052,5.76019,1960.0,1959.9,0.00765834]
[1742574985444,1.02121,1959.5,1959.3,0.6865]
[1742574985650,4.45221,1959.5,1959.4,2.39688]
[1742574985952,4.45221,1959.5,1959.4,1.3757]
[1742574986147,6.48761,1959.5,1959.4,2.39691]
[1742574986638,6.48761,1959.5,1959.4,1.3757]
[1742574986842,1.02121,1959.4,1959.3,0.00510554]
[1742574987042,2.34761,1959.4,1959.3,1.38080554]
[1742574988145,2.34761,1959.4,1959.3,2.40206554]
[1742574988545,2.34761,1959.4,1959.3,1.38080554]
[1742574988947,2.34761,1959.4,1959.3,2.40206554]
[1742574989152,2.34761,1959.4,1959.3,1.38080554]
[1742574990351,2.34761,1959.4,1959.3,0.00510554]
[1742574991358,2.34761,1959.4,1959.3,1.02636554]
[1742574991845,5.16116,1959.5,1959.4,1.02121]
[1742574992046,5.16115,1959.5,1959.4,1.3362]
[1742574992754,1.02121,1959.4,1959.3,0.00510554]
[1742574993158,2.31231,1959.4,1959.3,0.00510554]
[1742574995263,2.31231,1959.4,1958.9,2.55365]
[1742574995264,2.55315,1959.3,1958.5,3.63780001]
[1742574995465,1.02152,1958.8,1958.7,1.3434]
[1742574995668,1.02139,1959.1,1958.7,4.5512]
[1742574995865,2.10788664,1959.2,1959.1,1.02136]
[1742574996064,3.432,1959.2,1959.1,1.02136]
[1742574996772,4.45331,1959.2,1959.1,2.36476]
[1742574998069,3.432,1959.2,1959.1,2.36476]
[1742574998668,4.45331,1959.2,1959.1,2.36476]
[1742574998864,4.45331,1959.2,1959.1,1.3434]
[1742574999064,4.45331,1959.2,1958.7,1.02153]
[1742574999065,1.02153,1958.8,1958.7,1.02153]
[1742574999265,1.02153,1958.8,1958.7,1.71383]
[1742575000359,1.0215,1958.9,1958.8,1.02152]
[1742575000559,4.45345,1959.0,1958.9,1.02147]
[1742575000770,3.432,1959.0,1958.9,1.02147]
[1742575001662,5.79065,1959.2,1959.1,1.02136]
[1742575001858,5.79065,1959.2,1958.9,3.2078]
[1742575001859,1.02133,1959.2,1958.9,3.2078]
[1742575002074,4.45333,1959.2,1959.1,1.02132]
[1742575002768,4.45333,1959.2,1959.1,2.35776]
[1742575002970,4.45333,1959.2,1959.1,3.01766]
[1742575003675,4.45333,1959.2,1959.1,1.9963]
[1742575003875,4.45333,1959.2,1959.1,3.01766]
[1742575004374,5.84183,1959.2,1959.1,3.01766]
[1742575006975,5.84183,1959.2,1959.1,1.3364]
[1742575007275,5.84183,1959.2,1959.0,1.02139]
[1742575007276,1.02141,1959.1,1959.0,1.02139]
[1742575007512,2.43171,1959.1,1959.0,1.02139]
[1742575008783,2.43171,1959.1,1959.0,2.38339]
[1742575008965,2.43171,1959.1,1959.0,1.362]
[1742575009278,1.02147,1958.9,1958.8,0.6893]
[1742575009478,4.45347,1958.9,1958.8,0.6893]
[1742575009779,4.45347,1958.9,1958.8,1.71082]
[1742575009967,3.432,1959.2,1958.8,3.8971]
[1742575010164,1.02139,1959.1,1959.0,1.02138]
[1742575010564,2.39469,1959.1,1959.0,1.02138]
[1742575010980,4.45335,1959.2,1959.1,1.02136]
[1742575011373,1.02136,1959.1,1959.0,2.38027]
[1742575011672,2.39466,1959.1,1959.0,2.38027]
[1742575013178,2.39466,1959.1,1959.0,1.3589]
[1742575014474,1.3733,1959.1,1958.8,0.6893]
[1742575014677,1.02147,1958.9,1958.8,3.06342]
[1742575015279,4.45345,1959.0,1958.9,1.02147]
[1742575015476,4.45345,1959.0,1958.9,1.3583]
[1742575015781,4.45345,1959.0,1958.9,2.37977]
[1742575017581,1.3132,1959.1,1959.0,1.02141]
[1742575017778,2.33456,1959.1,1959.0,2.37971]
[1742575018185,2.33456,1959.1,1959.0,1.3583]
[1742575018381,2.33456,1959.1,1959.0,2.37971]
[1742575018585,2.33456,1959.1,1959.0,1.3583]
[1742575018784,2.33456,1959.1,1959.0,2.37971]
[1742575019582,2.33456,1959.1,1959.0,1.3583]
[1742575019788,1.02147,1959.0,1958.9,1.02145]
[1742575019986,5.81977,1959.0,1958.9,2.36745]
[1742575021286,5.81977,1959.0,1958.9,1.346]
[1742575021488,1.02152,1958.9,1958.8,1.02147]
[1742575021675,4.7983,1959.0,1958.9,1.02147]
[1742575022083,1.02138,1959.1,1958.9,1.02147]
[1742575022291,1.02138,1959.1,1959.0,1.69511]
[1742575022586,5.87785,1959.2,1959.1,1.02136]
[1742575022787,5.87785,1959.2,1959.1,1.67046]